Cogmind - Beta 14 @@@ ROGUE MODE // 2024.12.06 @ 18:09:42 Player: blank Result: Destroyed self with Rocket Launcher Performance ------------- Evolutions (0) 0 Regions Visited (2) 400 Robots Destroyed (32) 160 Value Destroyed (764) 764 Prototype IDs (0) 0 Alien Tech Used (0) 0 Bonus (0) 0 TOTAL SCORE: 1324 Bonus ------- None Cogmind --------- Core Integrity 0/250 Matter 199/300 Energy 124/125 System Corruption 0% Temperature Cool (4) Movement Core (500) Ox9 Location -10/Mines Parts ------- > --- POWER (1) -------- Light Ion Engine > --- PROPULSION (2) --- (None) > --- UTILITY (2) ------ Large Storage Unit Signal Interpreter > --- WEAPON (2) ------- Light Assault Rifle Rocket Launcher > --- INVENTORY (15) --- Light Ion Engine Huge Storage Unit Sensor Array Faulty Experimental Sensor Array Signal Interpreter Improved Terrain Scanner ECM Suite ECM Suite Rocket Launcher Rocket Launcher Peak State ------------ > --- POWER ------------ Light Ion Engine > --- PROPULSION ------- Wheel Wheel > --- UTILITY ---------- Large Storage Unit Signal Interpreter > --- WEAPON ----------- Rocket Launcher Rocket Launcher > --- INVENTORY -------- Light Ion Engine Huge Storage Unit Sensor Array Experimental Sensor Array Signal Interpreter Improved Terrain Scanner ECM Suite ECM Suite Light Assault Rifle Rocket Launcher [Rating: 11] Favorites ----------- Power Light Ion Engine Engine Light Ion Engine Propulsion Light Treads Treads Light Treads Wheel Wheel Utility Signal Interpreter Storage Large Storage Unit Processor Signal Interpreter Weapon Rocket Launcher Energy Gun Medium Laser Ballistic Gun Light Assault Rifle Launcher Rocket Launcher Build | -11 -10 -10 ------- Run | Yrd Mat Min Slots Evolved . | . . . Power . | . . . Propulsion . | . . . Utility . | . . . Weapon . | . . . Parts Attached 23 | 7 13 3 Power 3 | 1 1 1 Engine 3 | 1 1 1 Core . | . . . Reactor . | . . . Propulsion 4 | 2 2 . Treads 2 | 2 . . Leg . | . . . Wheel 2 | . 2 . Hover . | . . . Flight . | . . . Utility 6 | 1 5 . Device . | . . . Storage 5 | 1 4 . Processor 1 | . 1 . Hackware . | . . . Protection . | . . . Artifact . | . . . Weapon 10 | 3 5 2 Energy Gun 2 | 2 . . Energy Cannon . | . . . Ballistic Gun 2 | 1 . 1 Ballistic Cannon . | . . . Launcher 6 | . 5 1 Special Weapon . | . . . Impact Weapon . | . . . Slashing Weapon . | . . . Piercing Weapon . | . . . Special Melee Weapon . | . . . Unidentified Prototypes . | . . . Parts Lost 5 | . 1 4 Power 1 | . . 1 Propulsion 3 | . 1 2 Utility . | . . . Weapon 1 | . . 1 Highest Loss Streak 2 | . 1 2 To Critical Strikes . | . . . Average Slot Usage (%) 92 | . 92 92 Engine 12 | . 13 10 Treads 14 | . 21 . Wheel 11 | . 6 24 Storage 14 | . 14 14 Processor 10 | . 8 14 Energy Gun 11 | . 17 . Launcher 15 | . 10 26 Peak Build Rating 11 | 6 10 11 Average Rating 8 | 4 7 9 On Entrance 5 | . 6 10 Naked Turns . | . . . Heaviest Build 86 | 11 86 31 Greatest Support 40 | 40 40 20 Greatest Overweight (x) 3 | 1 2 3 Average Overweight (x) . | . . 1 Largest Inventory Capacity 25 | 8 25 15 Average Capacity 13 | 6 13 15 Most Carried 10 | 4 10 10 Average Carried 7 | 3 6 8 Final Capacity 15 | 8 15 15 Final Carried 10 | 4 8 10 Class Distribution -------------------- 100% | Mutant Dominant Class ---------------- Mutant | -10/Materials Mutant | -10/Mines Resources | -11 -10 -10 ----------- Run | Yrd Mat Min Matter Collected 621 | 247 179 195 Remotely . | . . . Salvage Created 760 | . 481 279 Parts 48 | . 31 17 Haulers Intercepted . | . . . Recyclers Shooed 2 | . 2 . Parts Field Recycled . | . . . Retrieved Matter . | . . . Parts Self-Destructed . | . . . Prevented . | . . . Kills | -11 -10 -10 ------- Run | Yrd Mat Min Combat Hostiles Destroyed 22 | . 10 12 Guns 9 | . 8 1 AOE 13 | . 2 11 Classes Destroyed 9 | . 7 2 Worker 1 | . . 1 Builder 1 | . 1 . Tunneler 2 | . 1 1 Recycler 3 | . 2 1 Operator 1 | . 1 . Watcher 3 | . 3 . Swarmer 6 | . 3 3 Grunt 15 | . 7 8 Assembled 1 | . . 1 Best Kill Streak 6 | . 6 4 Combat Bots Only 3 | . 3 3 Max Kills in Single Turn 5 | . 5 2 Gunslinging . | . . . Exploded 2 | . 1 2 Melee . | . . . Uniques/NPCs Destroyed . | . . . Combat | -11 -10 -10 -------- Run | Yrd Mat Min Hostile Shots Fired 66 | . 50 16 Missed 18 | . 16 2 Damage Taken 828 | . 412 416 Core 254 | . 84 170 Absorbed by Shields . | . . . Core Remaining (%) 100 | 100 . . Volleys Fired 64 | . 47 17 Largest 2 | . 2 2 Hottest 90 | . 90 66 Shots Fired 115 | . 84 31 Gun 87 | . 81 6 Cannon . | . . . Launcher 28 | . 3 25 Special . | . . . Kinetic 6 | . . 6 Thermal 81 | . 81 . Explosive 28 | . 3 25 Electromagnetic . | . . . Robot Hit Streak 11 | . 11 8 Robot Miss Streak 5 | . 5 4 Penetration Max . | . . . Secondary Targets 1 | . 1 . Max Gunslinging Chain 1 | . 1 . Shots Hit Robots 61 | . 51 10 Core Hits 57 | . 28 29 Critical Kills . | . . . Critical Parts Destroyed . | . . . Critical Strikes 2 | . 2 . Burn 2 | . 2 . Melee Attacks . | . . . Impact . | . . . Slashing . | . . . Piercing . | . . . Sneak Attacks . | . . . Combat Hostiles . | . . . Follow-up Attacks . | . . . Damage Inflicted 2256 | 5 1224 1027 Guns 623 | . 605 18 Cannons . | . . . Explosions 1628 | . 619 1009 Melee . | . . . Ramming 5 | 5 . . Kinetic 18 | . . 18 Thermal 605 | . 605 . Explosive 1628 | . 619 1009 Electromagnetic . | . . . Impact . | . . . Slashing . | . . . Piercing . | . . . Highest Corruption . | . . . Average Corruption . | . . . Corruption Purged . | . . . Corruption Blocked . | . . . Overload Shots . | . . . Overflow Damage 187 | . 157 30 Projectiles . | . . . Explosions 187 | . 157 30 Melee . | . . . Knockbacks . | . . . Impact . | . . . Kinetic . | . . . Secondary . | . . . Self-Inflicted Damage 375 | . 112 263 Shots 11 | . 3 8 Rammed 1 | 1 . . Targets Rammed 1 | 1 . . Kicked . | . . . Crushed . | . . . Highest Temperature 222 | . 222 18 Average Temperature 61 | . 70 10 Received Heat Transfer 135 | . 90 45 Siege Activations . | . . . Robots Corrupted . | . . . Combat Hostiles . | . . . Parts Fried . | . . . Impact Corruptions . | . . . Robots Melted . | . . . Combat Hostiles . | . . . Parts Melted 4 | . 4 . Heat Transferred 1747 | . 1747 . Parts Sabotaged . | . . . Parts Stolen . | . . . Parts Stripped . | . . . Power Chain Reactions . | . . . Alert | -11 -10 -10 ------- Run | Yrd Mat Min Peak Influence 277 | . 220 277 Initial 8 | . . 8 Average 82 | . 61 140 Maximum Alert Level 1 | . 1 1 Low Security (%) 91 | 100 97 75 Level 1 8 | . 2 24 Level 2 . | . . . Level 3 . | . . . Level 4 . | . . . Level 5 . | . . . High Security . | . . . Max Security . | . . . Squads Dispatched 2 | . 2 . Investigation 1 | . 1 . Extermination . | . . . Reinforcement 1 | . 1 . Assault . | . . . Garrison . | . . . Intercept . | . . . Searches Triggered . | . . . Construction Impeded . | . . . Haulers Reinforced . | . . . Active Scanning Responses . | . . . Cargo Convoy Interrupts . | . . . Stealth | -11 -10 -10 --------- Run | Yrd Mat Min Distress Signals 3 | . 3 . Communications Jammed . | . . . Distress Signals . | . . . Times Spotted 27 | . 18 9 Peak Tracking Total 4 | . 4 3 Tactical Retreats . | . . . Traps | -11 -10 -10 ------- Run | Yrd Mat Min Traps Triggered 3 | . 3 . Indirectly . | . . . Trap Hack Attempts . | . . . Triggered . | . . . Disarmed . | . . . Reprogrammed . | . . . Reused . | . . . Traps Extracted . | . . . Installed . | . . . Triggered . | . . . Machines | -11 -10 -10 ---------- Run | Yrd Mat Min Machines Disabled 4 | . 2 2 Max in Single Turn 2 | . 2 1 Machines Repaired . | . . . Machines Dismantled . | . . . Machines Sabotaged . | . . . Overloaded Fab Kills . | . . . Hacking | -11 -10 -10 --------- Run | Yrd Mat Min Machines Accessed 7 | . 7 . Terminals 7 | . 7 . Fabricators . | . . . Repair Stations . | . . . Recycling Units . | . . . Scanalyzers . | . . . Garrison Access . | . . . Total Hacks 14 | . 14 . Successful 10 | . 10 . Failed 4 | . 4 . Catastrophic . | . . . Database Lockouts . | . . . Manual 4 | . 4 . Terminals 14 | . 14 . Fabricators . | . . . Repair Stations . | . . . Recycling Units . | . . . Scanalyzers . | . . . Garrison Access . | . . . Terminal Hacks 10 | . 10 . Robot Analysis 3 | . 3 . Branch Access Points 1 | . 1 . Alert Level 3 | . 3 . Investigation Status 1 | . 1 . Hauler Manifests 1 | . 1 . Zone Layout 1 | . 1 . Fabricator Hacks . | . . . Repair Station Hacks . | . . . Recycling Unit Hacks . | . . . Scanalyzer . | . . . Garrison Access Hacks . | . . . Unauthorized Hacks . | . . . Terminals . | . . . Fabricators . | . . . Repair Stations . | . . . Recycling Units . | . . . Scanalyzers . | . . . Garrison Access . | . . . Data Cores Recovered . | . . . Used . | . . . Hacking Detections 4 | . 4 . Full Trace Events . | . . . Feedback Events . | . . . Feedback Blocked . | . . . Robot Schematics Acquired . | . . . Robots Built . | . . . Authchips . | . . . Time . | . . . Total Robot Build Rating . | . . . Part Schematics Acquired . | . . . Parts Built . | . . . Authchips . | . . . Time . | . . . Total Part Build Rating . | . . . Parts Repaired . | . . . Time . | . . . Parts Recycled . | . . . Recycled Matter . | . . . Retrieved Matter . | . . . Retrieved Components . | . . . Parts Scanalyzed . | . . . Part Schematics Acquired . | . . . Parts Damaged . | . . . Bothacking | -11 -10 -10 ------------ Run | Yrd Mat Min Used RIF Installer . | . . . Robots Hacked . | . . . Non-combat . | . . . Combat . | . . . Robot Hacks Applied . | . . . Relay Couplers Released . | . . . Fabnet Peak Effective % . | . . . Robots Rewired . | . . . Allies Hacked . | . . . Hacks Repelled . | . . . Allies | -11 -10 -10 -------- Run | Yrd Mat Min Total Allies . | . . . Largest Group . | . . . Highest-Rated Group . | . . . Highest-Rated Ally . | . . . Total Orders . | . . . Ally Attacks . | . . . Total Damage . | . . . Kills . | . . . Allies Corrupted . | . . . Allies Melted . | . . . Intel | -11 -10 -10 ------- Run | Yrd Mat Min Robot Analysis Total 3 | . 3 . Derelict Logs Recovered 1 | . . 1 Drone Launches . | . . . Drone Recoveries . | . . . Exploration | -11 -10 -10 ------------- Run | Yrd Mat Min Turns Passed 2083 | 104 1347 632 Spaces Moved 1338 | 64 783 491 Core 26 | 26 . . Treads 521 | 38 483 . Legs . | . . . Wheels 791 | . 300 491 Hover . | . . . Flight . | . . . Fastest Speed 50 | 50 95 95 Average Speed 128 | 130 146 99 Slowest Speed 320 | 160 320 125 Overloaded Moves . | . . . Propulsion Burnouts . | . . . Robots Hopped . | . . . Cave-ins Triggered . | . . . Exploration Rate (%) 60 | 4 89 87 Regions Visited 2 Branch Regions 1 Pre-discovered Areas 1 | . . 1 Known Exits Taken 1 | . 1 . Unknown Exits Taken 1 | 1 . . Scrap Searched 2 | . . 2 Spaces Dug . | . . . Terrain Destroyed 231 | . 29 202 Melee . | . . . Projectile . | . . . AOE 231 | . 29 202 Terrain Rammed . | . . . Walls Destroyed . | . . . Machines Disabled . | . . . Actions | -11 -10 -10 --------- Run | Yrd Mat Min Total 1582 | 81 895 606 Wait 129 | 4 33 92 Move 1337 | 64 782 491 Hop . | . . . Pick Up 19 | 6 10 3 Fast Attach 12 | 4 7 1 Attach 5 | 2 2 1 Detach 3 | . 3 . Swap 6 | 1 4 1 Drop 7 | . 7 . Fire 64 | . 47 17 Melee . | . . . Ram . | . . . Kick . | . . . Crush . | . . . Escape Stasis . | . . . Rewire . | . . . Trap . | . . . Miscellaneous . | . . . Route ------- -11/Scrapyard -10/Materials (discovered 3 exits: *Mat x2 / *Min) -10/Mines (discovered 1 exit: *Mat) History --------- Turn | Location | Event 10 | -11/Scrapyard | Discovered new exit (range 16) 105 | -11/Scrapyard | Entered Materials 301 | -10/Materials | Build established: Mutant 533 | -10/Materials | Discovered new exit (range 15) 715 | -10/Materials | Identified exit to Mines 844 | -10/Materials | Discovered new exit (range 15) 965 | -10/Materials | Identified exit to Materials 1346 | -10/Materials | Discovered exit to Materials (range 16) 1452 | -10/Materials | Entered Mines 1591 | -10/Mines | Discovered exit to Materials (range 6) 1647 | -10/Mines | Found a damaged Exp. Sensor Array with a note attached 1653 | -10/Mines | Found Prototype Device 1771 | -10/Mines | Learned location of Zion (-6) 1847 | -10/Mines | Excavation squad dispatched 1847 | -10/Mines | A large section of the Mines collapsed 1931 | -10/Mines | Core integrity fell below 50% 2082 | -10/Mines | Core integrity fell below 20% 2084 | -10/Mines | Destroyed self with Rocket Launcher Last Messages --------------- Acquired 25 matter. Acquired 16 matter. T-07 Excavator is excavating. U-05 Engineer lays Concrete. Acquired 25 matter. U-05 Engineer lays Concrete. U-05 Engineer builds a Wall. The unstable cave ceiling collapses. U-05 Engineer lays Concrete. U-05 Engineer builds a Wall. Acquired 34 matter. U-05 Engineer builds a Wall. U-05 Engineer lays Concrete. U-05 Engineer builds a Wall. U-05 Engineer lays Concrete. U-05 Engineer builds a Wall. Wheel destroyed. Destroyed Wheel. Destroyed Imp. Terrain Scanner. G-34 Mercenary destroyed. Map ----- +----------------------------------------------------+ | ?????????????????????????????????# %####### ## | | ?????????????????????????????????# #???## | | ?????????????????????????????????# #???# | | ?????????????????????????????????# #???# | | ?????????????????????????????????# #???# | | ?????????????????????????????????# #????# | | ?????????????????????????????????# ####### ## | | ?????????????????????????????????# ## #### | | ?????????????????????????????????# ## #??# | | ?????????????????????????????????####?# ## #?## | | ??????????????????????????????????????# ## ### | | ???????????????##??????????????????#### | | ???????????????? ??????????######### ## %##### | | ????????????????# ???###???# #?# | | ????????????????# #### ###?# """ " #?# | | ????????????????# #?# """ #?## | | ?????????????????# # ### """ " #??## | | ?????????????????## ##k ## #???### | | ????????????????## ###=## # = " "" #?????? | | ????????????????# * = " """ #?????? | | ????????????????### # =[ " """ #????## | | ?????????????????## # *!### #???## | | ?????????????????## % # #???# | | ?????????????????## # # #######??## | | ?????????????????## ### # ####????##### | | ?????????????????## @ #######??????## | | ????????????????## ######### #### # | | ????????????????# ### ## # | | ???????????????## ## # ## | | ????????????#### k ## #?# ####" | | ???????????## ### #?## ##"### # # | | ??????????## #### t #??### ! ### ## | | ?????????## #?# ##??## ! =## # | | ????????## #?# #???##*=*### | | ????????# ### ######## ##### | | ???????## ### [### ## ## # | | ???????# ### * # # ### | | ??????# ### ## = ### | | ??????# ##??## | | ??????###?????## ##### # ##### | | ???????????????## ##### ######???## | | ????????????????# ##???#####?????????# | | ????????????????# ####?????????????????## | | ????????????????# ##???????????????????## # | | ????????????????# #???????????????????## ## | | ????????????????# #??????????????????## #? | | ????????????????## ##????????????????### ##? | | ?????????????????## ##????????????????## ##?? | | ??????????????????# #?????????????????# #??? | | ??????????????????# #?????????????????# ##??? | +----------------------------------------------------+ Best States ------------- Heat Dissipation 25 Energy Generation 10 Energy Capacity 125 Matter Stores 300 Matter Capacity 300 Sight Range 16 Terrain Scan Density 10 Evasion (%) 41 Recoil Reduction 2 Item Schematics ----------------- None Robot Schematics ------------------ None Fabricated ------------ Nothing Alien Tech Used ----------------- None Achievements -------------- Armchair Analyst Challenges ------------ None Game ------ Seed DisruptionBiocellImmobilizer Manual? 0 Play Time 00:18:57 Cumulative 7.3 hours Start 2024.12.06 @ 17:52:05 End 2024.12.06 @ 18:09:42 Sessions 1 Manual Loads 0 Difficulty Rogue Special Mode None Game No. 14 Rogue 14 Adventurer 0 Explorer 0 Win Type - Total 0 Types 0/0/0/0/0/0/0/0/0 Lore% 3 Gallery% 10 Achievement% 12 Wizard Run 0 Options --------- Layout 2 ASCII 0 Keyboard 1 Movement Vi Keybinds 0 Fullscreen 2 Font 24/Smallcaps Map View 50x44 Zoom Use 0% Tactical HUD 0 Map Filters NONE Filters NONE Steam 1 RUN: 853bb671-26b8-4ea7-b16c-3177d2602e44